{"text_format":"3","workbook":"xlsx","n_sheets":4,"sheets":["Finanças","Rendimentos Mensais","Despesas Mensais","DADOS DO GRÁFICO"],"not_rendered":{"charts":1,"defined_names":10},"read":"whole","date_system":"1900"}

{"sheet":"Finanças","index":0,"n_rows":9,"n_cols":5,"rows_kept":9}
[null,"Nome"]
[null,"Orçamento Familiar"]
[null,{"$f":"TEXT(TODAY(),\"mmmm\")","v":"janeiro"}]
[null,{"$f":"YEAR(TODAY())","v":2017}]
[null,"Nota: a tabela Finanças é calculada automaticamente com base nas entradas na folha de cálculo Rendimentos Mensais e Despesas Mensais"]
[null,"Finanças","Estimativa","Real","Variância"]
[null,"Rendimentos Totais",{"$f":"Rendimentos[[#Totals],[Estimativa]]","v":{"v":5700,"d":"5,700"}},{"$f":"Rendimentos[[#Totals],[Real]]","v":{"v":5500,"d":"5,500"}},{"$f":"Rendimentos[[#Totals],[Variância]]","v":-200}]
[null,"Despesas Totais",{"$f":"Despesas[[#Totals],[Estimativa]]","v":{"v":3603,"d":"3,603"}},{"$f":"Despesas[[#Totals],[Real]]","v":{"v":3655,"d":"3,655"}},{"$f":"Despesas[[#Totals],[Variância]]","v":-52}]
[null,"Dinheiro Total",{"$f":"C7-C8","v":{"v":2097,"d":"2,097"}},{"$f":"D7-D8","v":{"v":1845,"d":"1,845"}},{"$f":"SUBTOTAL(109,Finanças[Variância])","v":-252}]

{"sheet":"Rendimentos Mensais","index":1,"n_rows":9,"n_cols":5,"rows_kept":9}
[null,{"$f":"Nome","v":"Nome"}]
[null,{"$f":"TítuloOrçamento","v":"Orçamento Familiar"}]
[null,{"$f":"Mês","v":"janeiro"}]
[null,{"$f":"Ano","v":2017}]
[null,"Rendimentos Mensais","Estimativa","Real","Variância"]
[null,"Rendimento 1",{"v":4000,"d":"4,000"},{"v":4000,"d":"4,000"},{"$f":"Rendimentos[[#This Row],[Real]]-Rendimentos[[#This Row],[Estimativa]]","v":0}]
[null,"Rendimento 2",{"v":1400,"d":"1,400"},{"v":1500,"d":"1,500"},{"$f":"Rendimentos[[#This Row],[Real]]-Rendimentos[[#This Row],[Estimativa]]","v":100}]
[null,"Outros Rendimentos",300,0,{"$f":"Rendimentos[[#This Row],[Real]]-Rendimentos[[#This Row],[Estimativa]]","v":-300}]
[null,"Rendimentos Totais",{"$f":"SUBTOTAL(109,Rendimentos[Estimativa])","v":{"v":5700,"d":"5,700"}},{"$f":"SUBTOTAL(109,Rendimentos[Real])","v":{"v":5500,"d":"5,500"}},{"$f":"SUBTOTAL(109,Rendimentos[Variância])","v":-200}]

{"sheet":"Despesas Mensais","index":2,"n_rows":26,"n_cols":5,"rows_kept":26}
[null,{"$f":"Nome","v":"Nome"}]
[null,{"$f":"TítuloOrçamento","v":"Orçamento Familiar"}]
[null,{"$f":"Mês","v":"janeiro"}]
[null,{"$f":"Ano","v":2017}]
[null,"Despesas Mensais","Estimativa","Real","Variância"]
[null,"Habitação",{"v":1500,"d":"1,500"},{"v":1500,"d":"1,500"},{"$f":"Despesas[[#This Row],[Estimativa]]-Despesas[[#This Row],[Real]]","v":0}]
[null,"Compras",250,280,{"$f":"Despesas[[#This Row],[Estimativa]]-Despesas[[#This Row],[Real]]","v":-30}]
[null,"Telefone",38,38,{"$f":"Despesas[[#This Row],[Estimativa]]-Despesas[[#This Row],[Real]]","v":0}]
[null,"Eletricidade/Gás",65,78,{"$f":"Despesas[[#This Row],[Estimativa]]-Despesas[[#This Row],[Real]]","v":-13}]
[null,"Água/Esgotos/Lixo",25,21,{"$f":"Despesas[[#This Row],[Estimativa]]-Despesas[[#This Row],[Real]]","v":4}]
[null,"TV por Cabo",75,83,{"$f":"Despesas[[#This Row],[Estimativa]]-Despesas[[#This Row],[Real]]","v":-8}]
[null,"Internet",60,60,{"$f":"Despesas[[#This Row],[Estimativa]]-Despesas[[#This Row],[Real]]","v":0}]
[null,"Manutenção/Reparações",0,60,{"$f":"Despesas[[#This Row],[Estimativa]]-Despesas[[#This Row],[Real]]","v":-60}]
[null,"Cuidados Infantis",180,150,{"$f":"Despesas[[#This Row],[Estimativa]]-Despesas[[#This Row],[Real]]","v":30}]
[null,"Propinas",250,250,{"$f":"Despesas[[#This Row],[Estimativa]]-Despesas[[#This Row],[Real]]","v":0}]
[null,"Animais de Estimação",75,80,{"$f":"Despesas[[#This Row],[Estimativa]]-Despesas[[#This Row],[Real]]","v":-5}]
[null,"Transportes",280,260,{"$f":"Despesas[[#This Row],[Estimativa]]-Despesas[[#This Row],[Real]]","v":20}]
[null,"Cuidados Pessoais",75,65,{"$f":"Despesas[[#This Row],[Estimativa]]-Despesas[[#This Row],[Real]]","v":10}]
[null,"Seguro",255,255,{"$f":"Despesas[[#This Row],[Estimativa]]-Despesas[[#This Row],[Real]]","v":0}]
[null,"Cartões de Crédito",100,100,{"$f":"Despesas[[#This Row],[Estimativa]]-Despesas[[#This Row],[Real]]","v":0}]
[null,"Empréstimos",0,0,{"$f":"Despesas[[#This Row],[Estimativa]]-Despesas[[#This Row],[Real]]","v":0}]
[null,"Impostos",0,0,{"$f":"Despesas[[#This Row],[Estimativa]]-Despesas[[#This Row],[Real]]","v":0}]
[null,"Presentes/Caridade",150,150,{"$f":"Despesas[[#This Row],[Estimativa]]-Despesas[[#This Row],[Real]]","v":0}]
[null,"Poupanças",225,225,{"$f":"Despesas[[#This Row],[Estimativa]]-Despesas[[#This Row],[Real]]","v":0}]
[null,"Outras",0,0,{"$f":"Despesas[[#This Row],[Estimativa]]-Despesas[[#This Row],[Real]]","v":0}]
[null,"Total",{"$f":"SUBTOTAL(109,Despesas[Estimativa])","v":{"v":3603,"d":"3,603"}},{"$f":"SUBTOTAL(109,Despesas[Real])","v":{"v":3655,"d":"3,655"}},{"$f":"SUBTOTAL(109,Despesas[Variância])","v":-52}]

{"sheet":"DADOS DO GRÁFICO","index":3,"n_rows":6,"n_cols":4,"rows_kept":6,"hidden":true}
[null,"DADOS DO GRÁFICO"]
[]
[null,null,"Estimativa","Real"]
[null,"Finanças",{"$f":"Finanças[[#Totals],[Estimativa]]","v":2097},{"$f":"Finanças[[#Totals],[Real]]","v":1845}]
[null,"Rendimentos Mensais",{"$f":"Rendimentos[[#Totals],[Estimativa]]","v":5700},{"$f":"Rendimentos[[#Totals],[Real]]","v":5500}]
[null,"Despesas Mensais",{"$f":"Despesas[[#Totals],[Estimativa]]","v":3603},{"$f":"Despesas[[#Totals],[Real]]","v":3655}]